fUST/lending_fUST_20260111
["ID","MTS","AMOUNT","RATE_DAILY","PERIOD"]
[401293882,1768115185071,500.0,8.971e-05,2]
[401293883,1768115185106,500.0,8.971e-05,2]
[401293884,1768115185149,500.0,8.971e-05,2]
[401293885,1768115185203,500.0,8.971e-05,2]
[401293886,1768115185242,500.0,8.971e-05,2]
[401293887,1768115185282,208.57826738,8.971e-05,2]
[401293888,1768115185308,291.42173262,8.971e-05,2]
[401293889,1768115185348,500.0,8.971e-05,2]
[401293890,1768115197572,876.74,6.384e-05,2]
[401293891,1768115198018,1753.49,6.965e-05,2]
[401293892,1768115198457,2630.23,7.545e-05,2]
[401293893,1768115198904,3506.98,8.125e-05,2]
[401293894,1768115199316,2109.31,8.706e-05,2]
[401293895,1768115199344,2274.41,8.706e-05,2]
[401293896,1768115210766,500.0,8.971e-05,2]
[401293897,1768115210806,500.0,8.971e-05,2]
[401293898,1768115210847,500.0,8.971e-05,2]
[401293899,1768115210889,500.0,8.971e-05,2]
[401293900,1768115210928,500.0,8.971e-05,2]
[401293901,1768115210967,500.0,8.971e-05,2]
[401293902,1768115211005,500.0,8.971e-05,2]
[401293903,1768115211043,500.0,8.971e-05,2]
[401293904,1768115211080,500.0,8.971e-05,2]
[401293905,1768115211119,500.0,8.971e-05,2]
[401293906,1768115211159,500.0,8.971e-05,2]
[401293907,1768115211196,500.0,8.971e-05,2]
[401293908,1768115211235,500.0,8.971e-05,2]
[401293909,1768115211272,500.0,8.971e-05,2]
[401293910,1768115211315,500.0,8.971e-05,2]
[401293911,1768115211354,225.6,8.971e-05,2]
[401293912,1768115211380,274.4,8.971e-05,2]
[401293913,1768115211417,500.0,8.971e-05,2]
[401293914,1768115211455,500.0,8.971e-05,2]
[401293915,1768115211492,500.0,8.971e-05,2]
[401293916,1768115211533,500.0,8.971e-05,2]
[401293917,1768115211570,500.0,8.971e-05,2]
[401293918,1768115211609,500.0,8.971e-05,2]
[401293919,1768115211647,500.0,8.971e-05,2]
[401293920,1768115211686,500.0,8.971e-05,2]
[401293921,1768115211724,500.0,8.971e-05,2]
[401293922,1768115211763,500.0,8.971e-05,2]
[401293923,1768115222353,500.0,8.971e-05,2]
[401293924,1768115222393,500.0,8.971e-05,2]
[401293925,1768115222551,500.0,8.971e-05,2]
[401293926,1768115222594,500.0,8.971e-05,2]
[401293927,1768115222633,500.0,8.971e-05,2]
[401293928,1768115222670,300.0,8.971e-05,2]
[401293929,1768115222707,500.0,8.971e-05,2]
[401293930,1768115222744,500.0,8.971e-05,2]
[401293931,1768115222780,500.0,8.971e-05,2]
[401293932,1768115222818,425.61,8.971e-05,2]
[401293933,1768115222842,74.39,8.971e-05,2]
[401293934,1768115222877,500.0,8.971e-05,2]
[401293935,1768115222921,500.0,8.971e-05,2]
[401293936,1768115222965,500.0,8.971e-05,2]
[401293937,1768115223005,500.0,8.971e-05,2]
[401293938,1768115223041,500.0,8.971e-05,2]
[401293939,1768115223079,500.0,8.971e-05,2]
[401293940,1768115223117,500.0,8.971e-05,2]
[401293941,1768115223155,500.0,8.971e-05,2]
[401293942,1768115223195,500.0,8.971e-05,2]
[401293943,1768115223231,500.0,8.971e-05,2]
[401293944,1768115223268,500.0,8.971e-05,2]
[401293945,1768115223313,500.0,8.971e-05,2]
[401293946,1768115223351,500.0,8.971e-05,2]
[401293947,1768115223397,364.00361172,8.971e-05,2]
[401293948,1768115223436,500.0,8.971e-05,2]
[401293949,1768115223487,500.0,8.971e-05,2]
[401293950,1768115223525,500.0,8.971e-05,2]
[401293951,1768115223565,500.0,8.971e-05,2]
[401293952,1768115223607,500.0,8.971e-05,2]
[401293953,1768115223656,500.0,8.971e-05,2]
[401293954,1768115223697,61.61638828,8.971e-05,2]
[401293955,1768115223722,438.38361172,8.971e-05,2]
[401293956,1768115223765,500.0,8.971e-05,2]
[401293957,1768115231425,236.36670613,8.971e-05,2]
[401293958,1768115261018,500.0,8.971e-05,2]
[401293959,1768115261174,500.0,8.971e-05,2]
[401293960,1768115261215,500.0,8.971e-05,2]
[401293961,1768115261264,500.0,8.971e-05,2]
[401293962,1768115261308,500.0,8.971e-05,2]
[401293963,1768115261348,500.0,8.971e-05,2]
[401293964,1768115261388,500.0,8.971e-05,2]
[401293965,1768115261430,550.0,8.971e-05,2]
[401293966,1768115276877,1058.87,5.925e-05,2]
[401293967,1768115277379,2117.74,6.464e-05,2]
[401293968,1768115277857,1598.64968215,7.003e-05,2]
[401293969,1768115277884,1577.95031785,7.003e-05,2]
[401293970,1768115278164,4235.47,7.542e-05,2]
[401293971,1768115278575,4186.58968215,8.08e-05,2]
[401293972,1768115278602,1107.75031785,8.08e-05,2]
[401293973,1768115278977,6353.21,8.619e-05,2]
[401293974,1768115280322,359.41,5.994e-05,2]
[401293975,1768115280592,359.41,5.994e-05,2]
[401293976,1768115282619,300.0,8.971e-05,2]
[401293978,1768115326704,500.0,8.971e-05,2]
[401293979,1768115326740,500.0,8.971e-05,2]
[401293980,1768115326776,500.0,8.971e-05,2]
[401293981,1768115326837,20.22968215,8.971e-05,2]
[401293982,1768115326858,479.77031785,8.971e-05,2]
[401293983,1768115326893,500.0,8.971e-05,2]
[401293984,1768115326928,500.0,8.971e-05,2]
[401293985,1768115326963,500.0,8.971e-05,2]
[401293986,1768115327001,500.0,8.971e-05,2]
[401293987,1768115327310,500.0,8.971e-05,2]
[401293988,1768115327351,500.0,8.971e-05,2]
[401293989,1768115327388,500.0,8.971e-05,2]
[401293990,1768115327451,500.0,8.971e-05,2]
[401293991,1768115327499,500.0,8.971e-05,2]
[401293992,1768115327558,500.0,8.971e-05,2]
[401293993,1768115327603,500.0,8.971e-05,2]
[401293994,1768115327661,500.0,8.971e-05,2]
[401293995,1768115327713,500.0,8.971e-05,2]
[401293996,1768115327760,512.70334421,8.971e-05,2]
[401293997,1768115327843,500.0,8.971e-05,2]
[401293998,1768115342761,286.0,8.971e-05,2]
[401293999,1768115343981,388.10937343,8.971e-05,2]
[401294000,1768115345624,500.0,8.971e-05,2]
[401294001,1768115345674,500.0,8.971e-05,2]
[401294002,1768115345728,333.42696451,8.971e-05,2]
[401294003,1768115345752,166.57303549,8.971e-05,2]
[401294004,1768115345793,500.0,8.971e-05,2]
[401294005,1768115345837,250.0,8.971e-05,2]
[401294006,1768115355103,858.26,6.382e-05,2]
[401294007,1768115355512,1716.52,6.962e-05,2]
[401294008,1768115355942,2574.78,7.542e-05,2]
[401294009,1768115356204,500.0,8.971e-05,2]
[401294010,1768115356247,500.0,8.971e-05,2]
[401294011,1768115356302,500.0,8.971e-05,2]
[401294012,1768115356361,500.0,8.971e-05,2]
[401294013,1768115356466,1933.87696451,8.122e-05,2]
[401294014,1768115356493,1499.17303549,8.122e-05,2]
[401294015,1768115356531,391.40036117,8.971e-05,2]
[401294016,1768115357037,4291.31,8.702e-05,2]
[401294017,1768115357448,157.0,8.3e-07,2]
[401294018,1768115418065,151.0,8.971e-05,2]
[401294019,1768115419290,151.0,8.971e-05,2]
[401294020,1768115421309,500.0,8.971e-05,2]
[401294021,1768115421350,262.10716748,8.971e-05,2]
[401294022,1768115421391,500.0,8.971e-05,2]
[401294023,1768115421437,500.0,8.971e-05,2]
[401294024,1768115421489,500.0,8.971e-05,2]
[401294025,1768115421535,500.0,8.971e-05,2]
[401294026,1768115431508,500.0,8.971e-05,2]
[401294027,1768115431561,97.01943586,8.971e-05,2]
[401294028,1768115431587,402.98056414,8.971e-05,2]
[401294029,1768115431634,500.0,8.971e-05,2]
[401294030,1768115431689,322.12453939,8.971e-05,2]
[401294032,1768115432465,-330.25242726,8.972e-05,2]
[401294033,1768115432479,-1330.10052848,8.972e-05,2]
[401294034,1768115432524,-81876.73866576,8.972e-05,2]
[401294035,1768115432535,-474.54297077,8.972e-05,2]
[401294036,1768115432546,-4485.65774862,8.972e-05,2]
[401294037,1768115432557,-2216.07077197,8.972e-05,2]
[401294038,1768115432568,-5269.30010608,8.972e-05,2]
[401294039,1768115432579,-716.65322861,8.972e-05,2]
[401294040,1768115433963,919.03,6.377e-05,2]
[401294041,1768115434375,1838.07,6.957e-05,2]
[401294042,1768115434777,2757.1,7.536e-05,2]
[401294043,1768115435210,3260.70489647,8.116e-05,2]
[401294044,1768115435267,415.43510353,8.116e-05,2]
[401294045,1768115435614,4595.17,8.696e-05,2]
[401294058,1768115438536,-6019.46421984,8.972e-05,2]
[401294059,1768115438549,-5735.64388837,8.972e-05,2]
[401294060,1768115438598,-791794.85347196,8.972e-05,2]
[401294061,1768115438607,-403.17508403,8.972e-05,2]
[401294062,1768115438618,-3243.25750004,8.972e-05,2]
[401294063,1768115438628,-546.0,8.972e-05,2]
[401294064,1768115438638,-609.8987029,9.159e-05,2]
[401294065,1768115438647,-1136.5281312,9.159e-05,2]
[401294066,1768115438657,-154.18,9.2e-05,2]
[401294067,1768115438667,-4355.2629413,9.207e-05,2]
[401294068,1768115438677,-17689.3178702,9.21e-05,2]
[401294069,1768115438686,-31423.9128076,9.21e-05,2]
[401294070,1768115438696,-27081.3501986,9.21e-05,2]
[401294071,1768115438705,-3053.4273289,9.21e-05,2]
[401294072,1768115438715,-151.0,9.21e-05,2]
[401294073,1768115438724,-175.972983,9.21e-05,2]
[401294074,1768115438734,-382.637039,9.21e-05,2]
[401294075,1768115438744,-382.637039,9.21e-05,2]
[401294076,1768115438754,-382.637039,9.21e-05,2]
[401294077,1768115438764,-382.637039,9.21e-05,2]
[401294078,1768115438774,-382.637039,9.21e-05,2]
[401294079,1768115438784,-382.637039,9.21e-05,2]
[401294080,1768115438793,-382.637039,9.21e-05,2]
[401294081,1768115438804,-382.637039,9.21e-05,2]
[401294082,1768115438814,-382.637039,9.21e-05,2]
[401294083,1768115438824,-382.637039,9.21e-05,2]
[401294084,1768115438834,-382.637039,9.21e-05,2]
[401294085,1768115438845,-382.637039,9.21e-05,2]
[401294086,1768115438855,-50000.0,9.21e-05,2]
[401294087,1768115438865,-5514.21,9.275e-05,2]
[401294088,1768115438875,-500.0,9.283e-05,2]
[401294089,1768115438885,-2560.29818,9.349e-05,2]
[401294090,1768115438895,-300.0,9.474e-05,2]
[401294091,1768115438905,-300.0,9.474e-05,2]
[401294092,1768115438915,-300.0,9.474e-05,2]
[401294093,1768115438925,-300.0,9.474e-05,2]
[401294094,1768115438935,-300.0,9.474e-05,2]
[401294095,1768115438945,-300.0,9.474e-05,2]
[401294096,1768115438955,-300.0,9.474e-05,2]
[401294097,1768115438965,-300.0,9.474e-05,2]
[401294098,1768115438975,-300.0,9.474e-05,2]
[401294099,1768115438986,-300.0,9.474e-05,2]
[401294100,1768115438996,-300.0,9.474e-05,2]
[401294101,1768115439006,-300.0,9.474e-05,2]
[401294102,1768115439016,-300.0,9.474e-05,2]
[401294103,1768115439026,-300.0,9.474e-05,2]
[401294104,1768115439036,-300.0,9.474e-05,2]
[401294105,1768115439046,-37089.82280941,9.514e-05,2]
[401294106,1768115439057,-500.0,9.607e-05,2]
[401294107,1768115439067,-1507.0,9.607e-05,2]
[401294108,1768115439077,-500.0,9.607e-05,2]
[401294109,1768115439087,-171.51692933,9.607e-05,2]
[401294110,1768115439097,-216.57112837,9.607e-05,2]
[401294111,1768115439106,-500.0,9.607e-05,2]
[401294112,1768115439115,-500.0,9.607e-05,2]
[401294113,1768115439125,-200.4248976,9.607e-05,2]
[401294114,1768115439136,-600.0,9.662e-05,2]
[401294115,1768115439146,-500.0,9.744e-05,2]
[401294116,1768115439156,-1507.0,9.744e-05,2]
[401294117,1768115439166,-500.0,9.744e-05,2]
[401294118,1768115439176,-500.0,9.744e-05,2]
[401294119,1768115439187,-500.0,9.744e-05,2]
[401294120,1768115439196,-500.0,9.744e-05,2]
[401294121,1768115439205,-500.0,9.8e-05,2]
[401294122,1768115439216,-6433.24,9.855e-05,2]
[401294123,1768115439225,-500.0,9.881e-05,2]
[401294124,1768115439235,-1507.0,9.881e-05,2]
[401294125,1768115439245,-243.28275221,9.881e-05,2]
[401294126,1768115439255,-500.0,9.881e-05,2]
[401294127,1768115439265,-500.0,9.881e-05,2]
[401294128,1768115439275,-369.72,9.881e-05,2]
[401294129,1768115439284,-151.0,9.881e-05,2]
[401294130,1768115439294,-151.0,9.881e-05,2]
[401294131,1768115439303,-151.0,9.881e-05,2]
[401294132,1768115439313,-151.0,9.881e-05,2]
[401294133,1768115439322,-151.0,9.881e-05,2]
[401294134,1768115439332,-151.0,9.881e-05,2]
[401294135,1768115439342,-151.0,9.881e-05,2]
[401294136,1768115439352,-151.0,9.881e-05,2]
[401294137,1768115439361,-151.0,9.881e-05,2]
[401294138,1768115439371,-151.0,9.881e-05,2]
[401294139,1768115439381,-151.0,9.881e-05,2]
[401294140,1768115439392,-151.0,9.881e-05,2]
[401294141,1768115439403,-151.0,9.881e-05,2]
[401294142,1768115439412,-151.0,9.881e-05,2]
[401294143,1768115439422,-30000.0,9.881e-05,2]
[401294144,1768115439432,-151.0,9.881e-05,2]
[401294145,1768115439441,-151.0,9.881e-05,2]
[401294146,1768115439450,-151.0,9.881e-05,2]
[401294147,1768115439459,-151.0,9.881e-05,2]
[401294148,1768115439468,-151.0,9.881e-05,2]
[401294149,1768115439478,-151.0,9.881e-05,2]
[401294150,1768115439488,-151.0,9.881e-05,2]
[401294151,1768115439497,-151.0,9.881e-05,2]
[401294152,1768115439506,-151.0,9.881e-05,2]
[401294153,1768115439515,-151.0,9.881e-05,2]
[401294154,1768115439524,-151.0,9.881e-05,2]
[401294155,1768115439533,-151.0,9.881e-05,2]
[401294156,1768115439543,-151.0,9.881e-05,2]
[401294157,1768115439552,-151.0,9.881e-05,2]
[401294158,1768115439562,-151.0,9.881e-05,2]
[401294159,1768115439571,-151.0,9.881e-05,2]
[401294160,1768115439580,-151.0,9.881e-05,2]
[401294161,1768115439590,-151.0,9.881e-05,2]
[401294162,1768115439600,-151.0,9.881e-05,2]
[401294163,1768115439610,-151.0,9.881e-05,2]
[401294164,1768115439619,-151.0,9.881e-05,2]
[401294165,1768115439629,-151.0,9.881e-05,2]
[401294166,1768115439639,-151.0,9.881e-05,2]
[401294167,1768115439648,-151.0,9.881e-05,2]
[401294168,1768115439658,-151.0,9.881e-05,2]
[401294169,1768115439667,-151.0,9.881e-05,2]
[401294170,1768115439676,-223.13477496,9.881e-05,2]
[401294171,1768115439686,-369.91,0.0001,2]
[401294172,1768115439696,-5717.60917593,0.0001,2]
[401294173,1768115439706,-700.0,0.0001,2]
[401294174,1768115439715,-727.78714077,0.0001,2]
[401294175,1768115439726,-3540.95,0.0001,2]
[401294176,1768115439736,-382.637039,0.0001,2]
[401294177,1768115439746,-382.637039,0.0001,2]
[401294178,1768115439756,-382.637039,0.0001,2]
[401294179,1768115439767,-382.637039,0.0001,2]
[401294180,1768115439777,-500.0,0.00010018,2]
[401294181,1768115439787,-1507.0,0.00010018,2]
[401294182,1768115439797,-500.0,0.00010018,2]
[401294183,1768115439807,-200.0,0.00010018,2]
[401294184,1768115439816,-500.0,0.00010018,2]
[401294185,1768115439826,-250.0,0.00010018,2]
[401294186,1768115439835,-500.0,0.00010018,2]
[401294187,1768115439845,-500.0,0.00010155,2]
[401294188,1768115439855,-1507.0,0.00010155,2]
[401294189,1768115439864,-500.00000003,0.00010155,2]
[401294190,1768115439874,-200.0,0.00010155,2]
[401294191,1768115439883,-500.0,0.00010155,2]
[401294192,1768115439893,-369.72,0.00010155,2]
[401294193,1768115439902,-1136.5281312,0.00010181,2]
[401294194,1768115439911,-369.91,0.000102,2]
[401294195,1768115439921,-500.0,0.00010292,2]
[401294196,1768115439930,-1507.0,0.00010292,2]
[401294197,1768115439940,-500.0,0.00010292,2]
[401294198,1768115439949,-500.0,0.00010292,2]
[401294199,1768115439959,-369.91,0.000103,2]
[401294200,1768115439968,-186.76,0.000103,2]
[401294201,1768115439978,-186.76,0.000103,2]
[401294202,1768115439987,-186.76,0.000103,2]
[401294203,1768115439996,-186.76,0.000103,2]
[401294204,1768115440006,-186.76,0.000103,2]
[401294205,1768115440016,-186.76,0.000103,2]
[401294206,1768115440025,-186.78,0.000103,2]
[401294207,1768115440034,-812.34621276,0.00010373,2]
[401294208,1768115440044,-3947.0203292,0.00010388,2]
[401294209,1768115440054,-7011.6226972,0.00010388,2]
[401294210,1768115440064,-6042.6660068,0.00010388,2]
[401294211,1768115440074,-382.637039,0.00010388,2]
[401294212,1768115440084,-382.637039,0.00010388,2]
[401294213,1768115440094,-382.637039,0.00010388,2]
[401294214,1768115440104,-382.637048,0.00010388,2]
[401294215,1768115440114,-369.91,0.000104,2]
[401294216,1768115440124,-250.0,0.00010411,2]
[401294217,1768115440134,-500.0,0.00010424,2]
[401294218,1768115440143,-171.65605742,0.00010424,2]
[401294219,1768115440153,-1507.0,0.00010429,2]
[401294220,1768115440162,-500.0,0.00010429,2]
[401294221,1768115440172,-500.0,0.00010429,2]
[401294222,1768115440183,-369.72,0.00010429,2]
[401294223,1768115440193,-5055.88306003,0.00010429,2]
[401294224,1768115440203,-7352.27,0.00010435,2]
[401294226,1768115440213,-500.0,0.00010561,2]
[401294228,1768115440223,-1507.0,0.00010566,2]
[401294230,1768115440233,-500.0,0.00010566,2]
[401294232,1768115440243,-500.0,0.00010566,2]
[401294233,1768115440254,-500.0,0.00010566,2]
[401294234,1768115440265,-369.91,0.000106,2]
[401294235,1768115440275,-720.0,0.00010629,2]
[401294236,1768115440285,-880.6992781,0.00010651,2]
[401294237,1768115440295,-1564.5044953,0.00010651,2]
[401294238,1768115440304,-1348.3010338,0.00010651,2]
[401294239,1768115440314,-247.64249067,0.00010698,2]
[401294240,1768115440324,-164.95729538,0.00010698,2]
[401294241,1768115440333,-500.0,0.00010698,2]
[401294242,1768115440344,-1507.0,0.00010703,2]
[401294243,1768115440353,-191.743266,0.00010703,2]
[401294244,1768115440363,-500.0,0.00010703,2]
[401294245,1768115440372,-369.72,0.00010703,2]
[401294246,1768115440381,-369.91,0.000108,2]
[401294247,1768115440391,-500.0,0.00010835,2]
[401294248,1768115440404,-1507.0,0.0001084,2]
[401294249,1768115440414,-500.0,0.0001084,2]
[401294250,1768115440425,-500.0,0.0001084,2]
[401294251,1768115440434,-475.74659915,0.00010972,2]
[401294252,1768115440445,-500.0,0.00010972,2]
[401294253,1768115440454,-1507.0,0.00010977,2]
[401294254,1768115440463,-500.0,0.00010977,2]
[401294255,1768115440474,-369.75,0.00010977,2]
[401294256,1768115440487,-800.0,0.00011,2]
[401294257,1768115440498,-369.91,0.00011,2]
[401294258,1768115440508,-151.0,0.00011,2]
[401294259,1768115440521,-8271.31,0.00011014,2]
[401294261,1768115440531,-971.7905175,0.00011054,2]
[401294263,1768115440541,-500.0,0.00011109,2]
[401294264,1768115440550,-1507.0,0.00011114,2]
[401294266,1768115440559,-500.0,0.00011114,2]
[401294268,1768115440569,-500.0,0.00011114,2]
[401294270,1768115440578,-1136.5281312,0.00011204,2]
[401294273,1768115440588,-500.0,0.00011246,2]
[401294274,1768115440598,-1507.0,0.00011251,2]
[401294276,1768115440607,-500.0,0.00011251,2]
[401294279,1768115440617,-154.18,0.000113,2]
[401294280,1768115440627,-500.0,0.00011383,2]
[401294282,1768115440637,-1507.0,0.00011388,2]
[401294284,1768115440646,-500.0,0.00011388,2]
[401294286,1768115440655,-500.0,0.00011388,2]
[401294288,1768115440664,-216.8357738,0.00011466,2]
[401294290,1768115440674,-500.0,0.0001152,2]
[401294292,1768115440683,-1507.0,0.00011525,2]
[401294294,1768115440692,-152.72644825,0.00011525,2]
[401294296,1768115440701,-9190.34,0.00011594,2]
[401294298,1768115440711,-3243.25750003,0.00011629,2]
[401294301,1768115440721,-500.0,0.00011657,2]
[401294303,1768115440730,-1507.0,0.00011662,2]
[401294305,1768115440739,-864.0,0.00011692,2]
[401294307,1768115440749,-761.14775359,0.00011787,2]
[401294308,1768115440758,-420.9785477,0.00011794,2]
[401294311,1768115440768,-1507.0,0.00011799,2]
[401294312,1768115440777,-1507.0,0.00011936,2]
[401294324,1768115440881,-1000.0,0.00012,2]
[401294326,1768115440893,-3041.54642333,0.00012071,2]
[401294328,1768115440903,-1507.0,0.00012073,2]
[401294330,1768115440912,-314.11372153,0.00012193,2]
[401294333,1768115440922,-1507.0,0.0001221,2]
[401294335,1768115440932,-1136.5281312,0.00012226,2]
[401294337,1768115440941,-250.0,0.00012273,2]
[401294339,1768115440950,-1030.96021323,0.00012329,2]
[401294341,1768115440959,-1030.96021323,0.00012329,2]
[401294343,1768115440969,-1030.96021323,0.00012329,2]
[401294344,1768115440978,-1030.96021323,0.00012329,2]
[401294347,1768115440987,-1030.96021323,0.00012329,2]
[401294349,1768115440997,-1030.96021323,0.00012329,2]
[401294351,1768115441007,-1030.96021323,0.00012329,2]
[401294352,1768115441016,-1030.96021323,0.00012329,2]
[401294353,1768115441025,-1030.96021323,0.00012329,2]
[401294354,1768115441034,-1030.96021323,0.00012329,2]
[401294355,1768115441043,-1030.96021323,0.00012329,2]
[401294356,1768115441053,-1030.96021323,0.00012329,2]
[401294357,1768115441062,-1030.96021323,0.00012329,2]
[401294358,1768115441072,-1030.96021323,0.00012329,2]
[401294359,1768115441082,-1030.96021323,0.00012329,2]
[401294360,1768115441091,-1030.96021323,0.00012329,2]
[401294361,1768115441100,-1030.96021323,0.00012329,2]
[401294362,1768115441110,-1030.96021323,0.00012329,2]
[401294363,1768115441119,-1030.96021323,0.00012329,2]
[401294364,1768115441128,-1030.96021323,0.00012329,2]
[401294365,1768115441139,-1030.96021323,0.00012329,2]
[401294366,1768115441148,-1030.96021323,0.00012329,2]
[401294367,1768115441157,-1030.96021323,0.00012329,2]
[401294368,1768115441167,-1030.96021323,0.00012329,2]
[401294369,1768115441177,-1030.96021323,0.00012329,2]
[401294370,1768115441186,-1030.96021323,0.00012329,2]
[401294371,1768115441198,-1030.96021323,0.00012329,2]
[401294372,1768115441207,-1030.96021323,0.00012329,2]
[401294373,1768115441217,-1030.96021323,0.00012329,2]
[401294374,1768115441227,-1030.96021323,0.00012329,2]
[401294375,1768115441238,-1030.96021323,0.00012329,2]
[401294376,1768115441248,-1030.96021323,0.00012329,2]
[401294377,1768115441258,-1030.96021323,0.00012329,2]
[401294378,1768115441267,-1030.96021323,0.00012329,2]
[401294379,1768115441277,-1030.96021323,0.00012329,2]
[401294380,1768115441287,-1030.96021323,0.00012329,2]
[401294381,1768115441298,-1030.96021323,0.00012329,2]
[401294382,1768115441308,-1030.96021323,0.00012329,2]
[401294383,1768115441318,-1030.96021323,0.00012329,2]
[401294384,1768115441329,-1030.96021323,0.00012329,2]
[401294385,1768115441339,-1030.96021323,0.00012329,2]
[401294386,1768115441349,-1030.96021323,0.00012329,2]
[401294387,1768115441358,-1030.96021323,0.00012329,2]
[401294388,1768115441368,-1030.96021323,0.00012329,2]
[401294389,1768115441378,-1030.96021323,0.00012329,2]
[401294390,1768115441388,-1030.96021323,0.00012329,2]
[401294391,1768115441401,-1030.96021323,0.00012329,2]
[401294392,1768115441411,-1030.96021323,0.00012329,2]
[401294393,1768115441420,-1030.96021323,0.00012329,2]
[401294394,1768115441430,-1030.96021323,0.00012329,2]
[401294395,1768115441441,-1030.96021323,0.00012329,2]
[401294396,1768115441451,-1030.96021323,0.00012329,2]
[401294397,1768115441462,-1030.96021323,0.00012329,2]
[401294398,1768115441473,-1030.96021323,0.00012329,2]
[401294399,1768115441483,-1030.96021323,0.00012329,2]
[401294400,1768115441493,-1030.96021323,0.00012329,2]
[401294401,1768115441503,-1030.96021323,0.00012329,2]
[401294402,1768115441512,-1014.85145989,0.00012329,2]
[401294403,1768115441521,-1014.85145989,0.00012329,2]
[401294404,1768115441531,-1014.85145989,0.00012329,2]
[401294405,1768115441543,-1014.85145989,0.00012329,2]
[401294406,1768115441552,-1014.85145989,0.00012329,2]
[401294407,1768115441561,-1014.85145989,0.00012329,2]
[401294408,1768115441571,-1014.85145989,0.00012329,2]
[401294409,1768115441580,-1014.85145989,0.00012329,2]
[401294410,1768115441590,-1014.85145989,0.00012329,2]
[401294411,1768115441599,-1014.85145989,0.00012329,2]
[401294412,1768115441608,-1014.85145989,0.00012329,2]
[401294413,1768115441617,-1014.85145989,0.00012329,2]
[401294414,1768115441627,-1014.85145989,0.00012329,2]
[401294415,1768115441637,-1014.85145989,0.00012329,2]
[401294416,1768115441646,-1014.85145989,0.00012329,2]
[401294417,1768115441655,-1014.85145989,0.00012329,2]
[401294418,1768115441664,-1014.85145989,0.00012329,2]
[401294419,1768115441674,-1014.85145989,0.00012329,2]
[401294420,1768115441684,-1014.85145989,0.00012329,2]
[401294421,1768115441693,-1014.85145989,0.00012329,2]
[401294422,1768115441703,-1014.85145989,0.00012329,2]
[401294423,1768115441712,-1014.85145989,0.00012329,2]
[401294424,1768115441721,-1014.85145989,0.00012329,2]
[401294425,1768115441730,-1014.85145989,0.00012329,2]
[401294426,1768115441739,-1014.85145989,0.00012329,2]
[401294427,1768115441750,-1014.85145989,0.00012329,2]
[401294428,1768115441760,-1014.85145989,0.00012329,2]
[401294429,1768115441770,-1014.85145989,0.00012329,2]
[401294430,1768115441779,-1014.85145989,0.00012329,2]
[401294431,1768115441789,-1061.83532381,0.00012329,2]
[401294432,1768115441799,-1061.83532381,0.00012329,2]
[401294433,1768115441809,-1061.83532381,0.00012329,2]
[401294434,1768115441818,-1061.83532379,0.00012329,2]
[401294435,1768115441828,-1507.0,0.00012347,2]
[401294436,1768115441838,-801.82496169,0.00012401,2]
[401294437,1768115441849,-1507.0,0.00012484,2]
[401294438,1768115441859,-3521.30514597,0.000125,2]
[401294439,1768115441870,-1507.0,0.00012621,2]
[401294440,1768115441880,-200.46,0.000127,2]
[401294441,1768115441890,-1512.83879749,0.00012758,2]
[401294442,1768115441900,-1000.0,0.00012861,2]
[401294443,1768115441909,-13062.76473945,0.000129,2]
[401294444,1768115441919,-13062.76473943,0.000129,2]
[401294445,1768115441930,-548.31811428,0.00012972,2]
[401294446,1768115441939,-200.46,0.000132,2]
[401294447,1768115441948,-500.0,0.00013273,2]
[401294448,1768115441957,-501.6206004,0.00013273,2]
[401294449,1768115441966,-500.0,0.00013273,2]
[401294450,1768115441977,-501.68451432,0.00013273,2]